bitfinex/quotes_BTCUSD_20260101
["timestamp","ask_amount","ask_price","bid_price","bid_amount"]
[1767289305228,0.43906376,88486.0,88473.0,0.00035221]
[1767289305434,0.000349,88476.0,88473.0,0.00035221]
[1767289305638,0.43906376,88483.0,88473.0,0.00035221]
[1767289306048,0.01136,88486.0,88473.0,0.00035221]
[1767289306463,0.43906376,88483.0,88473.0,0.00035221]
[1767289306670,0.01136,88486.0,88474.0,0.22583114]
[1767289309598,0.67682389,88484.0,88473.0,0.00035221]
[1767289312520,0.23776013,88481.0,88473.0,0.00035221]
[1767289312734,0.23776013,88481.0,88473.0,3.21e-06]
[1767289320495,0.43906376,88483.0,88473.0,3.21e-06]
[1767289321122,0.01136,88486.0,88473.0,3.21e-06]
[1767289321321,0.43906376,88483.0,88473.0,3.21e-06]
[1767289325114,0.45036536,88483.0,88473.0,3.21e-06]
[1767289325893,0.01130173,88482.0,88473.0,3.21e-06]
[1767289326292,0.24056967,88481.0,88473.0,3.21e-06]
[1767289326509,0.22926781,88479.0,88473.0,3.21e-06]
[1767289326705,0.22926781,88477.0,88473.0,3.21e-06]
[1767289327493,0.01136,88478.0,88473.0,3.21e-06]
[1767289330134,0.010811,88478.0,88473.0,3.21e-06]
[1767289336922,0.01136,88481.0,88474.0,0.23643316]
[1767289350960,0.01136,88487.0,88474.0,0.23643316]
[1767289352040,0.01136,88487.0,88473.0,3.21e-06]
[1767289352041,0.001,88497.0,88484.0,0.22965208]
[1767289352251,0.0001787,88500.0,88491.0,0.22965208]
[1767289352452,0.0001787,88500.0,88493.0,0.22965208]
[1767289355029,0.0001787,88500.0,88492.0,0.01136]
[1767289355593,0.0001787,88500.0,88493.0,0.01136]
[1767289356088,0.0001787,88500.0,88493.0,0.01081]
[1767289362606,0.0001615,88506.0,88493.0,0.01081]
[1767289365075,0.22610014,88506.0,88493.0,0.01081]
[1767289367052,0.22593864,88505.0,88480.0,0.43902924]
[1767289367256,0.22593864,88505.0,88482.0,0.24095381]
[1767289367459,0.22593864,88505.0,88482.0,0.22965208]
[1767289367634,0.22593864,88505.0,88482.0,0.24095381]
[1767289367839,0.22593864,88505.0,88482.0,0.22965208]
[1767289368234,0.22593864,88505.0,88484.0,0.22965208]
[1767289371808,0.22593864,88505.0,88481.0,0.01136]
[1767289371986,0.22593864,88505.0,88481.0,0.02266186]
[1767289372394,0.22593864,88505.0,88481.0,0.24095394]
[1767289372591,0.22593864,88505.0,88482.0,0.01136]
[1767289373850,0.22593864,88505.0,88483.0,0.23877255]
[1767289374064,0.22593864,88505.0,88483.0,0.25007415]
[1767289374838,0.22593864,88505.0,88483.0,0.23877255]
[1767289376343,0.22593864,88505.0,88483.0,0.25007415]
[1767289376646,0.22593864,88505.0,88483.0,0.23877255]
[1767289379865,0.23729864,88505.0,88483.0,0.23877255]
[1767289381322,0.26138671,88504.0,88483.0,0.23877255]
[1767289381526,0.23694276,88504.0,88483.0,0.23877255]
[1767289381727,0.23694276,88504.0,88490.0,0.43902924]
[1767289381923,0.23694276,88504.0,88490.0,0.01136]
[1767289385495,0.23694276,88502.0,88490.0,0.01136]
[1767289387162,0.23694276,88502.0,88476.0,0.04524]
[1767289387163,0.23694276,88496.0,88488.0,0.01136]
[1767289387387,0.23694276,88496.0,88487.0,0.01136]
[1767289388787,0.23694276,88496.0,88486.0,0.01136]
[1767289389952,0.23694276,88496.0,88477.0,0.23877255]
[1767289390103,0.2482427,88496.0,88481.0,0.01136]
[1767289390688,0.23694276,88496.0,88481.0,0.01136]
[1767289391802,0.24824347,88490.0,88475.0,0.0001315]
[1767289392001,0.23694276,88484.0,88475.0,0.0001315]
[1767289397243,0.01130096,88488.0,88475.0,0.0001315]
[1767289397443,0.01136,88489.0,88488.0,0.000549]
[1767289397711,0.01136,88489.0,88476.0,0.23877255]
[1767289403257,0.01136,88489.0,88475.0,0.0001315]
[1767289403258,0.23054149,88489.0,88475.0,0.0001315]
[1767289403438,0.25052497,88487.0,88475.0,0.0001315]
[1767289403779,0.23922388,88487.0,88475.0,0.0001315]
[1767289404207,0.25052497,88487.0,88475.0,0.0001315]
[1767289404505,0.23922388,88486.0,88475.0,0.0001315]
[1767289404702,0.01130109,88487.0,88475.0,0.0001315]
[1767289404703,0.23922388,88484.0,88475.0,0.0001315]
[1767289407529,0.25052638,88476.0,88459.0,0.00054081]
[1767289407687,0.2392796,88476.0,88459.0,0.00054081]
[1767289407918,0.2392796,88476.0,88460.0,0.01136]
[1767289409686,0.2392796,88476.0,88461.0,0.01136]
[1767289409834,0.01130262,88475.0,88459.0,0.00054081]
[1767289410033,0.23922388,88474.0,88460.0,0.01136]
[1767289410468,0.23922388,88474.0,88459.0,0.00054081]
[1767289410673,0.23922388,88474.0,88459.0,0.01190081]
[1767289410985,0.23922388,88472.0,88459.0,0.01190081]
[1767289411135,0.43902924,88470.0,88459.0,0.01190081]
[1767289411518,0.25052714,88470.0,88459.0,0.00054081]
[1767289411706,0.23922388,88467.0,88459.0,0.00054081]
[1767289413941,0.23867488,88467.0,88459.0,0.00054081]
[1767289416301,0.23922388,88458.0,88438.0,0.22482201]
[1767289416552,0.23922388,88458.0,88446.0,0.01136]
[1767289417338,0.23922388,88458.0,88440.0,0.0001465]
[1767289417515,0.23922388,88458.0,88441.0,0.01136]
[1767289417936,0.23922388,88458.0,88440.0,0.0001465]
[1767289417937,0.49603432,88451.0,88440.0,0.0001465]
[1767289418143,0.49603432,88451.0,88431.0,8.7012468]
[1767289418144,0.6787292,88451.0,88437.0,0.0001034]
[1767289418316,0.23922388,88450.0,88437.0,0.0001034]
[1767289418529,0.23922388,88448.0,88437.0,0.0001034]
[1767289419748,0.23922388,88448.0,88439.0,1.19253144]
[1767289419945,0.23922388,88448.0,88439.0,1.18834287]
[1767289419946,0.25052995,88448.0,88439.0,1.18834287]
[1767289420169,0.12639357,88441.0,88439.0,0.57998508]
[1767289422072,0.01136,88442.0,88439.0,0.57998508]
[1767289423077,0.0565355,88440.0,88439.0,1e-08]
[1767289423396,0.01130786,88434.0,88431.0,8.70070475]
[1767289423580,0.05654061,88432.0,88431.0,7.80830293]
[1767289423779,0.0570935,88432.0,88431.0,7.68602354]
[1767289423979,0.0570935,88432.0,88431.0,7.55287932]
[1767289424245,0.00055289,88432.0,88431.0,7.55287932]
[1767289424786,0.05654061,88432.0,88431.0,7.16435773]
[1767289424986,0.05654061,88432.0,88431.0,6.76964156]
[1767289425211,0.05654061,88432.0,88431.0,6.65634531]
[1767289425543,0.09745937,88432.0,88431.0,6.50439294]
[1767289425701,0.04091876,88432.0,88431.0,6.50435043]
[1767289426046,0.04091876,88432.0,88431.0,5.47169471]
[1767289426193,0.04091876,88432.0,88431.0,3.53689048]
[1767289426388,0.04091876,88432.0,88431.0,3.32516]
[1767289426612,0.05654061,88432.0,88431.0,2.97945369]
[1767289426860,0.05654061,88432.0,88431.0,2.74920943]
[1767289427188,0.05654061,88432.0,88431.0,2.73210943]
[1767289427384,0.05654061,88432.0,88431.0,2.68082987]
[1767289427588,0.01136,88433.0,88431.0,2.59485814]
[1767289427932,0.04528,88436.0,88431.0,2.59485814]
[1767289428137,0.05653672,88439.0,88432.0,0.2247795]
[1767289428138,0.01136,88439.0,88432.0,0.2247795]
[1767289428513,0.01136,88439.0,88432.0,0.22482201]
[1767289429807,0.071145,88439.0,88432.0,0.22482201]
[1767289430007,0.01136,88439.0,88432.0,0.22482201]
[1767289431101,0.01136,88439.0,88432.0,0.21982201]
[1767289431714,0.01130761,88436.0,88432.0,0.21982201]
[1767289431913,0.248668,88432.0,88431.0,1.52982571]
[1767289432117,0.13723077,88432.0,88431.0,1.15176361]
[1767289432330,0.13723077,88432.0,88431.0,1.01070872]
[1767289432520,0.10270988,88432.0,88431.0,0.93079661]
[1767289432736,0.10270988,88432.0,88431.0,0.80758954]
[1767289433000,0.05654253,88429.0,88412.0,0.01136]
[1767289433170,0.06707773,88429.0,88428.0,1e-08]
[1767289433373,0.1273703,88429.0,88428.0,1e-08]
[1767289433576,0.06707773,88429.0,88428.0,1e-08]
[1767289433781,0.12842801,88429.0,88428.0,1e-08]
[1767289433982,0.05654829,88420.0,88419.0,1e-08]
[1767289434960,0.05655149,88415.0,88414.0,0.32502835]
[1767289435160,0.01131004,88417.0,88414.0,0.32502835]
[1767289435662,0.01130978,88419.0,88414.0,0.32502835]
[1767289435942,0.01130991,88418.0,88414.0,0.32502835]
[1767289436137,0.01130978,88419.0,88414.0,0.32502835]
[1767289436502,0.01130965,88420.0,88414.0,0.32502835]
[1767289436910,0.01130991,88418.0,88414.0,0.32502835]
[1767289437147,0.01130965,88420.0,88418.0,0.000549]
[1767289437700,0.01131042,88414.0,88411.0,0.01136]
[1767289437897,0.01131055,88413.0,88410.0,0.0001523]
[1767289438139,0.01131055,88413.0,88410.0,0.00020816]
[1767289438338,0.01076155,88413.0,88410.0,0.00020816]
[1767289438775,0.01076155,88413.0,88411.0,0.34202834]
[1767289439001,0.01131017,88416.0,88411.0,0.34202834]
[1767289439271,0.01131042,88414.0,88411.0,0.34202834]
[1767289439431,0.01131042,88414.0,88411.0,0.33440594]
[1767289439633,0.05655276,88413.0,88411.0,0.33440594]
[1767289439842,0.01131042,88414.0,88411.0,0.33440594]
[1767289440243,0.01131055,88413.0,88410.0,0.00020816]
[1767289440776,0.06786367,88413.0,88410.0,1.6e-07]
[1767289441178,0.1063177,88413.0,88410.0,1.6e-07]
[1767289441326,0.05655404,88411.0,88410.0,1.6e-07]
[1767289441528,0.09274266,88412.0,88410.0,1.6e-07]
[1767289441722,0.09269359,88410.0,88402.0,0.39490548]
[1767289441923,0.08155527,88407.0,88400.0,0.43990532]
[1767289442173,0.08155527,88407.0,88402.0,0.01136]
[1767289442369,0.08155527,88407.0,88397.0,0.43990532]
[1767289442370,0.01131208,88401.0,88397.0,0.43990532]
[1767289442571,0.08095527,88402.0,88397.0,0.01176]
[1767289442773,0.01131132,88407.0,88397.0,0.01176]
[1767289442975,0.01131132,88407.0,88397.0,0.45126532]
[1767289443389,0.01055375,88406.0,88397.0,0.45126532]
[1767289443594,0.01131132,88407.0,88397.0,0.45126532]
[1767289443801,0.02186386,88406.0,88397.0,0.45126532]
[1767289444002,0.01131144,88406.0,88397.0,0.45126532]
[1767289444154,0.01055581,88405.0,88397.0,0.45126532]
[1767289444353,0.05655617,88408.0,88405.0,0.000152]
[1767289444354,0.08269217,88408.0,88405.0,0.000152]
[1767289444552,0.0113126,88397.0,88382.0,0.0004]
[1767289444781,0.04618536,88396.0,88387.0,0.43950532]
[1767289444948,0.01154552,88398.0,88388.0,0.01136]
[1767289444949,0.01131324,88392.0,88388.0,0.01136]
[1767289445154,0.01055476,88391.0,88388.0,0.01136]
[1767289445349,0.01055476,88390.0,88388.0,0.01136]
[1767289445582,0.01131362,88389.0,88384.0,0.0004558]
[1767289445824,0.00023305,88392.0,88389.0,0.01136]
[1767289445946,0.01131285,88395.0,88389.0,0.01136]
[1767289446153,0.03563494,88394.0,88384.0,0.0004558]
[1767289446407,0.02432196,88393.0,88385.0,0.05664]
[1767289446560,0.0922011,88393.0,88386.0,0.01136]
[1767289446766,0.0002253,88382.0,88373.0,0.04528]
[1767289446948,0.0001055,88382.0,88375.0,0.01136]
[1767289447150,0.0001055,88382.0,88376.0,0.01136]
[1767289447371,0.01131324,88392.0,88377.0,0.34202834]
[1767289447737,0.02432774,88391.0,88383.0,0.34202834]
[1767289447917,0.08690456,88399.0,88380.0,0.43950532]
[1767289447918,0.02432774,88390.0,88385.0,0.34202834]
[1767289448130,0.02432774,88389.0,88385.0,0.34202834]
[1767289448317,0.01131285,88395.0,88384.0,0.01136]
[1767289448494,0.01131362,88389.0,88384.0,0.01136]
[1767289448678,0.02432778,88388.0,88384.0,0.01136]
[1767289448878,0.02432778,88387.0,88379.0,0.34202834]
[1767289449102,0.02433504,88386.0,88385.0,0.01136]
[1767289449309,0.02433504,88391.0,88385.0,0.01136]
[1767289449462,0.02433504,88390.0,88385.0,0.01136]
[1767289449663,0.02433504,88389.0,88385.0,0.01136]
[1767289449890,0.02433504,88388.0,88385.0,0.01136]
[1767289450087,0.02433504,88387.0,88385.0,0.01136]
[1767289450419,0.02433504,88386.0,88381.0,0.04528]
[1767289450718,0.01131324,88392.0,88382.0,0.01136]
[1767289450878,0.02433056,88391.0,88380.0,0.43950532]
[1767289451086,0.02433056,88390.0,88381.0,0.05664]
[1767289451287,0.02433056,88389.0,88381.0,0.05664]
[1767289451490,0.05656287,88398.0,88383.0,0.34202834]
[1767289451491,0.01131298,88394.0,88383.0,0.34202834]
[1767289451694,0.01131234,88399.0,88382.0,0.01136]
[1767289451695,0.09701978,88405.0,88384.0,0.43950532]
[1767289451918,0.01131157,88405.0,88395.0,0.43950532]
[1767289452097,0.01131183,88403.0,88396.0,0.01136]
[1767289452321,0.0113117,88404.0,88396.0,0.01136]
[1767289453077,0.01131183,88403.0,88396.0,0.01136]
[1767289453301,0.0113117,88404.0,88396.0,0.01136]
[1767289453599,0.01131144,88406.0,88396.0,0.01136]
[1767289453801,0.01131132,88407.0,88396.0,0.45086532]
[1767289454002,0.00074122,88409.0,88398.0,0.34202834]
[1767289454205,0.00074122,88409.0,88399.0,0.43950532]
[1767289454403,0.00074122,88409.0,88400.0,0.34202834]
[1767289455036,0.00074122,88409.0,88402.0,0.34202834]
[1767289455238,0.00074122,88409.0,88403.0,0.01136]
[1767289455557,0.00074122,88409.0,88403.0,0.05664]
[1767289455758,0.00074122,88409.0,88400.0,0.34202834]
[1767289456266,0.00074122,88409.0,88401.0,0.05664]
[1767289456427,0.00074122,88409.0,88402.0,0.05664]
[1767289457553,0.01057009,88408.0,88402.0,0.05664]
[1767289457896,0.00074122,88409.0,88403.0,0.34202834]
[1767289459611,0.13648772,88419.0,88403.0,0.34202834]
[1767289459921,0.13648772,88419.0,88409.0,0.78153366]
[1767289460123,0.13648772,88419.0,88410.0,0.01136]
[1767289460285,0.13648772,88418.0,88411.0,0.34202834]
[1767289460710,9.52e-05,88421.0,88411.0,0.34202834]
[1767289461208,0.00020104,88421.0,88411.0,0.25802834]
[1767289461373,0.00020104,88421.0,88412.0,0.34202834]
[1767289461775,0.01151057,88421.0,88412.0,0.34202834]
[1767289462014,0.00020104,88421.0,88412.0,0.34202834]
[1767289463162,0.01151057,88421.0,88412.0,0.34202834]
[1767289463365,0.00020104,88421.0,88412.0,0.34202834]
[1767289463541,0.01151057,88421.0,88412.0,0.34202834]
[1767289463707,0.02438267,88420.0,88412.0,0.34202834]
[1767289464342,0.03569232,88420.0,88412.0,0.34202834]
[1767289464719,0.02438267,88419.0,88412.0,0.34202834]
[1767289465039,0.02438267,88418.0,88412.0,0.34202834]
[1767289465250,0.02438267,88417.0,88412.0,0.34202834]
[1767289465468,0.02438267,88416.0,88412.0,0.34202834]
[1767289465678,0.01151057,88421.0,88412.0,0.34202834]
[1767289465886,0.02438318,88420.0,88412.0,0.34202834]
[1767289466096,0.02438318,88419.0,88412.0,0.34202834]
[1767289466298,0.02438318,88418.0,88412.0,0.34202834]
[1767289466471,0.02438318,88417.0,88412.0,0.34202834]
[1767289466656,0.01151057,88421.0,88412.0,0.34202834]
[1767289466870,0.02438328,88420.0,88412.0,0.34202834]
[1767289467070,0.02438328,88419.0,88412.0,0.34202834]
[1767289467428,0.02438328,88418.0,88412.0,0.34202834]
[1767289467702,0.00020104,88421.0,88412.0,0.34202834]
[1767289468820,0.00020104,88421.0,88412.0,0.25802834]
[1767289468821,0.02458419,88421.0,88412.0,0.25802834]
[1767289469383,0.03589372,88421.0,88412.0,0.25802834]
[1767289469586,0.02438315,88420.0,88412.0,0.25802834]
[1767289469794,0.00020104,88421.0,88412.0,0.25802834]
[1767289469993,0.01058276,88420.0,88412.0,0.25802834]
[1767289470178,0.01058276,88419.0,88412.0,0.25802834]
[1767289470376,0.01058276,88418.0,88412.0,0.25802834]
[1767289470572,0.01151057,88421.0,88412.0,0.25802834]
[1767289470805,0.03496527,88420.0,88412.0,0.25802834]
[1767289471015,0.03496527,88419.0,88412.0,0.25802834]
[1767289471213,0.01151057,88421.0,88412.0,0.25802834]
[1767289471387,0.03496551,88420.0,88412.0,0.25802834]
[1767289471587,0.00020104,88421.0,88412.0,0.25802834]
[1767289473843,0.0113085,88429.0,88411.0,0.34151098]
[1767289473975,0.03495687,88428.0,88420.0,0.34151098]
[1767289474180,0.01130837,88430.0,88421.0,0.01136]
[1767289474409,0.01150825,88431.0,88421.0,0.01136]
[1767289474606,0.03568099,88430.0,88421.0,0.01136]
[1767289474814,0.01130837,88430.0,88421.0,0.01136]
[1767289475015,0.0002,88431.0,88421.0,0.01136]
[1767289475224,0.03588086,88431.0,88421.0,0.01136]
[1767289475441,0.02437261,88430.0,88421.0,0.01136]
[1767289475569,0.0002,88431.0,88421.0,0.01136]
[1767289475770,0.02457256,88431.0,88421.0,0.01136]
[1767289475967,0.03588081,88431.0,88422.0,0.01136]
[1767289476184,0.01150825,88431.0,88422.0,0.010811]
[1767289476450,0.0002,88431.0,88422.0,0.010811]
[1767289477328,0.01150825,88431.0,88422.0,0.010811]
[1767289477999,0.01130837,88430.0,88422.0,0.010811]
[1767289478613,0.0002,88431.0,88422.0,0.010811]
[1767289478812,0.02458294,88431.0,88422.0,0.010811]
[1767289479016,0.01150825,88431.0,88422.0,0.010811]
[1767289479221,0.01130837,88430.0,88422.0,0.010811]
[1767289479623,0.0002,88431.0,88422.0,0.010811]
[1767289479856,0.01150825,88431.0,88422.0,0.010811]
[1767289480097,0.02439025,88430.0,88422.0,0.010811]
[1767289480321,0.01150825,88431.0,88422.0,0.010811]
[1767289480601,0.0244002,88430.0,88422.0,0.010811]
[1767289481362,0.03570857,88430.0,88422.0,0.010811]
[1767289481568,0.0244002,88429.0,88422.0,0.010811]
[1767289481765,0.02441253,88428.0,88422.0,0.010811]
[1767289481973,0.02441253,88427.0,88422.0,0.010811]
[1767289482153,0.01130837,88430.0,88422.0,0.010811]
[1767289482353,0.02441253,88429.0,88422.0,0.010811]
[1767289482961,0.02441253,88428.0,88423.0,0.01136]
[1767289483183,0.02441253,88427.0,88423.0,0.01136]
[1767289483382,0.02442338,88426.0,88423.0,0.01136]
[1767289483685,0.01150825,88431.0,88423.0,0.01136]
[1767289483832,0.03502358,88430.0,88423.0,0.01136]
[1767289484013,0.03502358,88429.0,88423.0,0.01136]
[1767289484234,0.02442338,88428.0,88423.0,0.01136]
[1767289484432,0.02442338,88427.0,88423.0,0.01136]
[1767289484604,0.02442338,88426.0,88423.0,0.01136]
[1767289484804,0.01150825,88431.0,88423.0,0.01136]
[1767289485031,0.03502936,88430.0,88423.0,0.01136]
[1767289485228,0.03502936,88429.0,88423.0,0.01136]
[1767289485434,0.02442733,88428.0,88423.0,0.01136]
[1767289485636,0.02442733,88427.0,88423.0,0.01136]
[1767289485923,0.02442733,88426.0,88423.0,0.01136]
[1767289486121,0.02442733,88425.0,88423.0,0.01136]
[1767289486321,0.02442733,88424.0,88423.0,0.01081]
[1767289486753,0.02442733,88424.0,88390.0,0.00054128]
[1767289486754,0.01131042,88414.0,88390.0,0.00054128]
[1767289486967,0.06786893,88406.0,88390.0,0.00054128]
[1767289487119,0.0113117,88404.0,88390.0,0.00054128]
[1767289487322,0.06787099,88403.0,88400.0,1e-08]
[1767289487534,0.06787099,88403.0,88401.0,0.01136]
[1767289487745,0.02443774,88402.0,88400.0,1e-08]
[1767289487952,0.06787038,88404.0,88400.0,0.01136001]
[1767289488191,0.03574957,88403.0,88400.0,0.01136001]
[1767289488389,0.37211474,88402.0,88400.0,0.01136001]
[1767289489163,0.37211474,88402.0,88401.0,0.01136]
[1767289491344,0.38342644,88404.0,88401.0,0.01136]
[1767289491918,0.38342644,88404.0,88401.0,0.00374992]
[1767289492317,0.05655922,88403.0,88401.0,0.00374992]
[1767289492556,0.37211474,88404.0,88401.0,0.00374992]
[1767289492786,0.37211474,88404.0,88403.0,0.000549]
[1767289492972,0.37211474,88404.0,88401.0,0.00374992]
[1767289492973,0.38342644,88404.0,88401.0,0.00374992]
[1767289493177,0.01131183,88403.0,88400.0,1e-08]
[1767289496631,0.0113117,88404.0,88403.0,0.00055]
[1767289496820,0.01131157,88405.0,88400.0,1e-08]
[1767289497142,0.0113117,88404.0,88400.0,1e-08]
[1767289497640,0.056555,88410.0,88401.0,0.01136]
[1767289497844,0.03571002,88408.0,88401.0,0.01136]
[1767289498077,0.02439883,88407.0,88401.0,0.01136]
[1767289498233,0.01131093,88410.0,88401.0,0.01136]
[1767289498434,0.02439742,88409.0,88401.0,0.01136]
[1767289499024,0.03570848,88409.0,88401.0,0.01136]
[1767289499222,0.03570861,88408.0,88401.0,0.01136]
[1767289499472,0.02439742,88407.0,88401.0,0.01136]
[1767289500662,0.01131106,88409.0,88401.0,0.01136]
[1767289500866,0.02439472,88408.0,88400.0,1e-08]
[1767289501069,0.01131183,88403.0,88400.0,1e-08]
[1767289501268,0.0113117,88404.0,88400.0,1e-08]
[1767289501446,0.01131157,88405.0,88400.0,1e-08]
[1767289501850,0.0113117,88404.0,88400.0,1e-08]
[1767289502048,0.01131183,88403.0,88391.0,0.35504338]
[1767289502549,0.0113117,88404.0,88391.0,0.35504338]
[1767289502720,0.01131196,88402.0,88391.0,0.35504338]
[1767289502942,0.01131208,88401.0,88391.0,0.01136]
[1767289503152,0.01131221,88400.0,88391.0,0.01136]
[1767289503344,0.01131208,88401.0,88390.0,0.00054128]
[1767289503345,0.000549,88391.0,88390.0,0.00054128]
[1767289503541,0.0113126,88397.0,88390.0,0.01190128]
[1767289503756,0.01131234,88399.0,88390.0,0.01190128]
[1767289504500,0.37583008,88401.0,88390.0,0.01190128]
[1767289504720,0.01131183,88403.0,88390.0,0.01190128]
[1767289504932,0.01131208,88401.0,88391.0,0.01136]
[1767289505139,0.06786997,88405.0,88391.0,0.01136]
[1767289505140,0.0113117,88404.0,88391.0,0.01136]
[1767289505341,0.01131196,88402.0,88391.0,0.01136]
[1767289505966,0.01131208,88401.0,88391.0,0.01136]
[1767289507503,0.01131221,88400.0,88391.0,0.01136]
[1767289508135,0.01131196,88402.0,88391.0,0.01136]
[1767289508734,0.22620197,88417.0,88391.0,0.01136]
[1767289508735,0.01131132,88407.0,88391.0,0.38604337]
[1767289508942,0.09026372,88406.0,88391.0,0.38604337]
[1767289509143,0.03570915,88405.0,88391.0,0.38604337]
[1767289509343,0.02439758,88404.0,88391.0,0.38604337]
[1767289509862,0.02439758,88403.0,88391.0,0.38604337]
[1767289510075,0.01131119,88408.0,88391.0,0.38604337]
[1767289510284,0.05084421,88407.0,88391.0,0.38604337]
[1767289510483,0.03571257,88406.0,88391.0,0.38604337]
[1767289510682,0.02440113,88405.0,88391.0,0.38604337]
[1767289510881,0.02440113,88404.0,88391.0,0.38604337]
[1767289511088,0.02440113,88403.0,88391.0,0.38604337]
[1767289511312,0.02716208,88407.0,88391.0,0.38604337]
[1767289511511,0.0244095,88406.0,88391.0,0.38604337]
[1767289511915,0.04427103,88406.0,88391.0,0.37468337]
[1767289512114,0.0244095,88405.0,88393.0,0.37468337]
[1767289513463,0.01131196,88402.0,88393.0,0.37468337]
[1767289513611,0.0113126,88397.0,88394.0,0.010261]
[1767289513838,0.01131247,88398.0,88394.0,0.010261]
[1767289514050,0.02442335,88397.0,88394.0,0.010261]
[1767289514566,0.01131234,88399.0,88394.0,0.010261]
[1767289514567,0.02442335,88396.0,88394.0,0.010261]
[1767289514745,0.01131221,88400.0,88394.0,0.010261]
[1767289514946,0.02443182,88399.0,88390.0,0.00054128]
[1767289515111,0.03574416,88399.0,88395.0,0.01136]
[1767289515312,0.02443182,88398.0,88390.0,0.00054128]
[1767289515511,0.02443182,88398.0,88396.0,0.01136]
[1767289515709,0.02443182,88397.0,88396.0,0.01136]
[1767289516165,0.02443182,88398.0,88396.0,0.01136]
[1767289516473,0.0113126,88397.0,88390.0,0.00054128]
[1767289516677,0.02443182,88396.0,88391.0,0.01136]
[1767289517170,0.02443182,88396.0,88392.0,0.01136]
[1767289517368,0.02443182,88395.0,88392.0,0.01136]
[1767289517582,0.02443182,88394.0,88392.0,0.01136]
[1767289517758,0.02443182,88393.0,88392.0,0.01136]
[1767289518132,0.01131247,88398.0,88393.0,0.000549]
[1767289518338,0.02446148,88397.0,88392.0,0.01136]
[1767289518742,0.02391148,88397.0,88392.0,0.38604337]
[1767289518946,0.03051188,88401.0,88392.0,0.38604337]
[1767289519154,0.01061689,88400.0,88392.0,0.38604337]
[1767289519346,0.03051188,88401.0,88392.0,0.38604337]
[1767289519347,0.01061689,88399.0,88392.0,0.38604337]
[1767289519574,0.03051188,88403.0,88392.0,0.38604337]
[1767289519776,0.01061631,88402.0,88392.0,0.38604337]
[1767289519975,0.01061631,88401.0,88392.0,0.38604337]
[1767289520151,0.01061631,88400.0,88392.0,0.38604337]
[1767289520354,0.01061654,88399.0,88393.0,0.01136]
[1767289520557,0.01131221,88400.0,88393.0,0.01136]
[1767289520759,0.01061657,88399.0,88392.0,0.37468337]
[1767289521101,0.04182384,88402.0,88393.0,0.38604337]
[1767289521305,0.01061662,88401.0,88393.0,0.38604337]
[1767289521523,0.01061662,88400.0,88393.0,0.38604337]
[1767289521723,0.01061662,88399.0,88393.0,0.38604337]
[1767289521890,0.01131208,88401.0,88393.0,0.38604337]
[1767289522216,0.01061657,88400.0,88393.0,0.38604337]
[1767289522398,0.04182384,88402.0,88393.0,0.38604337]
[1767289522399,0.01061657,88399.0,88393.0,0.38604337]
[1767289522559,0.04182384,88402.0,88393.0,0.38604337]
[1767289522922,0.01061663,88401.0,88393.0,0.38604337]
[1767289523092,0.01061663,88400.0,88393.0,0.38604337]
[1767289523274,0.01061663,88399.0,88393.0,0.38604337]
[1767289523459,0.01131208,88401.0,88393.0,0.38604337]
[1767289523659,0.01061672,88400.0,88393.0,0.38604337]
[1767289523884,0.01061672,88399.0,88393.0,0.38604337]
[1767289524099,0.03051188,88402.0,88393.0,0.38604337]
[1767289524299,0.01061682,88401.0,88393.0,0.38604337]
[1767289524512,0.01061682,88400.0,88393.0,0.01136]
[1767289524715,0.01061682,88399.0,88393.0,0.01136]
[1767289525024,0.04182371,88403.0,88393.0,0.01136]
[1767289525268,0.01131208,88401.0,88393.0,0.01136]
[1767289525448,0.01061694,88400.0,88393.0,0.01136]
[1767289525823,0.01061694,88399.0,88393.0,0.01136]
[1767289526205,0.01131208,88401.0,88393.0,0.01136]
[1767289526406,0.01061713,88400.0,88393.0,0.01136]
[1767289526637,0.01061713,88399.0,88393.0,0.01136]
[1767289526810,0.01131208,88401.0,88393.0,0.01136]
[1767289527012,0.01061713,88400.0,88393.0,0.01136]
[1767289527187,0.01061713,88399.0,88393.0,0.01136]
[1767289527389,0.01131234,88399.0,88393.0,0.01136]
[1767289527598,0.01131196,88402.0,88393.0,0.01136]
[1767289527807,0.01061733,88401.0,88393.0,0.01136]
[1767289528003,0.01061733,88400.0,88393.0,0.01136]
[1767289528200,0.01061733,88399.0,88393.0,0.01136]
[1767289528386,0.03051188,88402.0,88393.0,0.01136]
[1767289528582,0.01061804,88401.0,88393.0,0.01136]
[1767289528795,0.01061804,88400.0,88393.0,0.01136]
[1767289528969,0.01061804,88399.0,88393.0,0.01136]
[1767289529170,0.01131208,88401.0,88393.0,0.01136]
[1767289529396,0.01061815,88400.0,88393.0,0.01136]
[1767289529606,0.01061815,88399.0,88393.0,0.01136]
[1767289529802,0.03051188,88402.0,88393.0,0.01136]
[1767289530002,0.0106189,88401.0,88393.0,0.01136]
[1767289530212,0.0106189,88400.0,88393.0,0.01136]
[1767289530421,0.04182384,88402.0,88393.0,0.01136]
[1767289530422,0.0106189,88399.0,88393.0,0.01136]
[1767289530621,0.010619,88398.0,88393.0,0.01136]
[1767289530910,0.02446636,88397.0,88393.0,0.01136]
[1767289531115,0.02446636,88396.0,88393.0,0.01136]
[1767289531352,0.02446636,88395.0,88393.0,0.01136]
[1767289531500,0.03051188,88402.0,88393.0,0.01136]
[1767289531700,0.01062,88401.0,88393.0,0.01136]
[1767289532055,0.01062,88400.0,88390.0,0.00054128]
[1767289532216,0.01062,88399.0,88394.0,0.01136]
[1767289532578,0.01062,88398.0,88394.0,0.01136]
[1767289532757,0.04182396,88401.0,88394.0,0.01136]
[1767289532991,0.01062138,88400.0,88394.0,0.01136]
[1767289533173,0.01062138,88399.0,88394.0,0.01136]
[1767289533372,0.01062138,88398.0,88394.0,0.01136]
[1767289533666,0.01131221,88400.0,88394.0,0.01136]
[1767289533869,0.01131247,88398.0,88395.0,0.01136]
[1767289534083,0.01062227,88397.0,88395.0,0.01081]
[1767289535302,0.38100147,88393.0,88389.0,1e-08]
[1767289535507,0.36968836,88383.0,88381.0,0.01136]
[1767289535906,0.38100249,88385.0,88381.0,0.01136]
[1767289536097,0.38100249,88385.0,88383.0,0.000549]
[1767289536098,0.36968836,88385.0,88383.0,0.000549]
[1767289536325,0.01131349,88390.0,88370.0,0.4405634]
[1767289536326,0.04182512,88392.0,88385.0,0.00055]
[1767289536537,0.01131349,88390.0,88380.0,0.45146494]
[1767289536754,0.01061932,88389.0,88380.0,0.45146494]
[1767289536974,0.01061932,88388.0,88380.0,0.45146494]
[1767289537194,0.01131388,88387.0,88376.0,0.38860083]
[1767289537394,9.167e-05,88392.0,88379.0,0.01136]
[1767289537569,0.42625618,88390.0,88379.0,0.4515234]